[Event "*** SCC Grand Prix: Titled Tuesday Blitz"]
[Site "Chess.com"]
[Date "2020.06.09"]
[Round "6"]
[White "BillieKimbah"]
[Black "sonicdravise"]
[Result "1-0"]
[WhiteElo "2855"]
[BlackElo "2555"]
[TimeControl "180+1"]
[EndTime "10:06:31 PDT"]
[Termination "BillieKimbah won by checkmate"]

1. e4 {[%clk 0:03:00.9]} 1... c5 {[%clk 0:02:59.2]} 2. Nf3 {[%clk 0:03:00.8]}
2... d6 {[%clk 0:02:59.6]} 3. c3 {[%clk 0:02:57.8]} 3... Nf6 {[%clk 0:02:58.3]}
4. h3 {[%clk 0:02:57.9]} 4... g6 {[%clk 0:02:49.6]} 5. Bb5+ {[%clk 0:02:46]}
5... Bd7 {[%clk 0:02:48.8]} 6. Bxd7+ {[%clk 0:02:45.4]} 6... Qxd7 {[%clk
0:02:46.3]} 7. Qe2 {[%clk 0:02:45.3]} 7... Bg7 {[%clk 0:02:44.7]} 8. O-O {[%clk
0:02:45.1]} 8... O-O {[%clk 0:02:44.1]} 9. d4 {[%clk 0:02:45.2]} 9... d5 {[%clk
0:02:41.5]} 10. e5 {[%clk 0:02:44]} 10... Ne4 {[%clk 0:02:41.5]} 11. Nbd2 {[%clk
0:02:44.6]} 11... Nxd2 {[%clk 0:02:40.8]} 12. Bxd2 {[%clk 0:02:45.5]} 12... cxd4
{[%clk 0:02:38.6]} 13. cxd4 {[%clk 0:02:45.3]} 13... Nc6 {[%clk 0:02:38]} 14.
Rfe1 {[%clk 0:02:42.6]} 14... Nd8 {[%clk 0:02:30.9]} 15. Be3 {[%clk 0:02:39.2]}
15... Ne6 {[%clk 0:02:30.9]} 16. h4 {[%clk 0:02:38.8]} 16... h5 {[%clk
0:02:30.2]} 17. Nh2 {[%clk 0:02:32.1]} 17... Rac8 {[%clk 0:02:13.3]} 18. Rad1
{[%clk 0:02:25.6]} 18... Rc4 {[%clk 0:02:08.9]} 19. b3 {[%clk 0:02:19.2]} 19...
Rc3 {[%clk 0:02:07.5]} 20. g4 {[%clk 0:02:16.9]} 20... hxg4 {[%clk 0:02:02.1]}
21. Nxg4 {[%clk 0:02:17.8]} 21... Rfc8 {[%clk 0:01:59.4]} 22. Qf3 {[%clk
0:02:16.2]} 22... Nf8 {[%clk 0:01:33]} 23. h5 {[%clk 0:01:57.1]} 23... Qf5
{[%clk 0:01:30.4]} 24. Qxf5 {[%clk 0:01:52.5]} 24... gxf5 {[%clk 0:01:30.4]} 25.
Nh2 {[%clk 0:01:49.6]} 25... Kh7 {[%clk 0:01:24.7]} 26. Bg5 {[%clk 0:01:48.4]}
26... e6 {[%clk 0:01:17.7]} 27. Bd2 {[%clk 0:01:47.4]} 27... Rc2 {[%clk
0:01:17.4]} 28. Nf3 {[%clk 0:01:47.2]} 28... Bh6 {[%clk 0:01:17.1]} 29. Ng5+
{[%clk 0:01:44.4]} 29... Bxg5 {[%clk 0:01:16.3]} 30. Bxg5 {[%clk 0:01:45.3]}
30... Nd7 {[%clk 0:01:15.7]} 31. Re3 {[%clk 0:01:41.5]} 31... Rxa2 {[%clk
0:01:12.1]} 32. Rg3 {[%clk 0:01:41]} 32... Rac2 {[%clk 0:00:58.7]} 33. Be3
{[%clk 0:01:40.4]} 33... Rg8 {[%clk 0:00:57.3]} 34. Kh2 {[%clk 0:01:38]} 34...
Rxg3 {[%clk 0:00:56.4]} 35. Kxg3 {[%clk 0:01:38.9]} 35... Nb8 {[%clk 0:00:51.7]}
36. Kh4 {[%clk 0:01:38.4]} 36... Nc6 {[%clk 0:00:49.7]} 37. Kg5 {[%clk
0:01:38.7]} 37... Nd8 {[%clk 0:00:37.1]} 38. Kf6 {[%clk 0:01:38.5]} 38... Rc7
{[%clk 0:00:33.6]} 39. Rg1 {[%clk 0:01:37.6]} 39... a5 {[%clk 0:00:28.9]} 40. h6
{[%clk 0:01:35.1]} 40... b5 {[%clk 0:00:26.1]} 41. Rg7+ {[%clk 0:01:32.9]} 41...
Kh8 {[%clk 0:00:26.4]} 42. h7 {[%clk 0:01:33.8]} 42... Rd7 {[%clk 0:00:25.9]}
43. Bh6 {[%clk 0:01:22.5]} 43... a4 {[%clk 0:00:24.6]} 44. bxa4 {[%clk
0:01:12.7]} 44... bxa4 {[%clk 0:00:25.5]} 45. Rg3 {[%clk 0:01:09.7]} 45... Nc6
{[%clk 0:00:06]} 46. Bg7+ {[%clk 0:01:07]} 46... Kxh7 {[%clk 0:00:06.2]} 47.
Rh3+ {[%clk 0:01:07.9]} 47... Kg8 {[%clk 0:00:06.7]} 48. Rh8# {[%clk 0:01:08.8]}
1-0

[Event "*** SCC Grand Prix: Titled Tuesday Blitz"]
[Site "Chess.com"]
[Date "2020.06.09"]
[Round "6"]
[White "pheonixking2000"]
[Black "ChessWarrior7197"]
[Result "0-1"]
[WhiteElo "2780"]
[BlackElo "2948"]
[TimeControl "180+1"]
[EndTime "10:06:34 PDT"]
[Termination "ChessWarrior7197 won on time"]

1. c4 {[%clk 0:03:00.9]} 1... e6 {[%clk 0:02:59.1]} 2. Nc3 {[%clk 0:02:59.6]}
2... d5 {[%clk 0:02:58.7]} 3. d4 {[%clk 0:03:00.2]} 3... c5 {[%clk 0:02:58.6]}
4. cxd5 {[%clk 0:02:59.2]} 4... exd5 {[%clk 0:02:58.4]} 5. Nf3 {[%clk
0:02:55.6]} 5... Nc6 {[%clk 0:02:58.1]} 6. g3 {[%clk 0:02:56.1]} 6... Nf6 {[%clk
0:02:57.9]} 7. Bg2 {[%clk 0:02:56.6]} 7... cxd4 {[%clk 0:02:58]} 8. Nxd4 {[%clk
0:02:56.4]} 8... Bc5 {[%clk 0:02:58]} 9. Nb3 {[%clk 0:02:51]} 9... Bb6 {[%clk
0:02:57.3]} 10. O-O {[%clk 0:02:51.6]} 10... d4 {[%clk 0:02:57.3]} 11. Na4
{[%clk 0:02:49.2]} 11... O-O {[%clk 0:02:56.8]} 12. Bg5 {[%clk 0:02:43.4]} 12...
Re8 {[%clk 0:02:55.6]} 13. Nxb6 {[%clk 0:02:00.1]} 13... axb6 {[%clk 0:02:54.5]}
14. Bxc6 {[%clk 0:01:52.6]} 14... bxc6 {[%clk 0:02:55.4]} 15. Qxd4 {[%clk
0:01:53]} 15... Qxd4 {[%clk 0:02:54.2]} 16. Nxd4 {[%clk 0:01:53.9]} 16... c5
{[%clk 0:02:54.7]} 17. Nb5 {[%clk 0:01:45.1]} 17... Rxe2 {[%clk 0:02:54]} 18.
Rfe1 {[%clk 0:01:45.6]} 18... Rxe1+ {[%clk 0:02:43.2]} 19. Rxe1 {[%clk
0:01:46.5]} 19... Bb7 {[%clk 0:02:37.1]} 20. Bxf6 {[%clk 0:01:40.7]} 20... gxf6
{[%clk 0:02:38]} 21. Nd6 {[%clk 0:01:24.9]} 21... Bc6 {[%clk 0:02:29.2]} 22. a3
{[%clk 0:01:25.2]} 22... Rd8 {[%clk 0:02:25.8]} 23. Nf5 {[%clk 0:01:25.2]} 23...
Kf8 {[%clk 0:02:25.4]} 24. Rc1 {[%clk 0:01:13.4]} 24... Rd2 {[%clk 0:02:13.9]}
25. b4 {[%clk 0:01:12.4]} 25... c4 {[%clk 0:02:12.1]} 26. g4 {[%clk 0:00:54.9]}
26... b5 {[%clk 0:02:07.4]} 27. h4 {[%clk 0:00:41.6]} 27... Bd7 {[%clk
0:02:00.6]} 28. Ne3 {[%clk 0:00:35]} 28... Ra2 {[%clk 0:01:46]} 29. Rd1 {[%clk
0:00:35.4]} 29... Be8 {[%clk 0:01:18.7]} 30. Nd5 {[%clk 0:00:19.1]} 30... Rxa3
{[%clk 0:01:13.9]} 31. Nxf6 {[%clk 0:00:19.6]} 31... c3 {[%clk 0:01:06.3]} 32.
Rd8 {[%clk 0:00:07]} 32... Ke7 {[%clk 0:01:05.5]} 33. Rxe8+ {[%clk 0:00:07.3]}
33... Kxf6 {[%clk 0:01:05]} 34. Rc8 {[%clk 0:00:08]} 34... Ke5 {[%clk
0:01:04.1]} 35. Kf1 {[%clk 0:00:06.2]} 35... Kd4 {[%clk 0:01:03.4]} 36. Rc5
{[%clk 0:00:03.1]} 36... Rb3 {[%clk 0:00:59.2]} 37. Ke2 {[%clk 0:00:01.6]} 37...
Rxb4 {[%clk 0:00:59]} 38. Rc7 {[%clk 0:00:02.5]} 38... Rb1 {[%clk 0:00:57.1]}
39. Rd7+ {[%clk 0:00:02]} 39... Kc4 {[%clk 0:00:56.9]} 40. Rxf7 {[%clk
0:00:02.9]} 40... c2 {[%clk 0:00:56.6]} 41. Rc7+ {[%clk 0:00:03]} 41... Kb3
{[%clk 0:00:56.9]} 0-1

[Event "*** SCC Grand Prix: Titled Tuesday Blitz"]
[Site "Chess.com"]
[Date "2020.06.09"]
[Round "6"]
[White "stanyga"]
[Black "GM_LOADING"]
[Result "1-0"]
[WhiteElo "2655"]
[BlackElo "2488"]
[TimeControl "180+1"]
[EndTime "10:06:37 PDT"]
[Termination "stanyga won by resignation"]

1. g4 {[%clk 0:03:00.2]} 1... e5 {[%clk 0:02:58]} 2. Bg2 {[%clk 0:02:59.1]} 2...
Ne7 {[%clk 0:02:57.7]} 3. d4 {[%clk 0:02:57.4]} 3... exd4 {[%clk 0:02:46.8]} 4.
Qxd4 {[%clk 0:02:57]} 4... Nbc6 {[%clk 0:02:47.5]} 5. Qa4 {[%clk 0:02:56.1]}
5... d6 {[%clk 0:02:45.3]} 6. Nc3 {[%clk 0:02:51]} 6... Bd7 {[%clk 0:02:44.8]}
7. h3 {[%clk 0:02:45.9]} 7... Ng6 {[%clk 0:02:43.8]} 8. Be3 {[%clk 0:02:38.4]}
8... Be7 {[%clk 0:02:36.4]} 9. O-O-O {[%clk 0:02:35.8]} 9... O-O {[%clk
0:02:28.9]} 10. f4 {[%clk 0:02:33.2]} 10... Bf6 {[%clk 0:02:27.2]} 11. Nd5
{[%clk 0:02:28.7]} 11... Re8 {[%clk 0:02:01.7]} 12. g5 {[%clk 0:02:27]} 12...
Be7 {[%clk 0:01:55.5]} 13. h4 {[%clk 0:02:26.7]} 13... Bf8 {[%clk 0:01:48]} 14.
Qb3 {[%clk 0:02:12.1]} 14... Nge7 {[%clk 0:01:42.6]} 15. Bf2 {[%clk 0:02:00.3]}
15... Be6 {[%clk 0:01:41.3]} 16. e4 {[%clk 0:01:56.9]} 16... Bg4 {[%clk
0:01:18.4]} 17. Bf3 {[%clk 0:01:48.7]} 17... Bxf3 {[%clk 0:01:17.5]} 18. Nxf3
{[%clk 0:01:48.3]} 18... Nxd5 {[%clk 0:01:18.1]} 19. exd5 {[%clk 0:01:46.4]}
19... Ne7 {[%clk 0:01:18.6]} 20. h5 {[%clk 0:01:33.8]} 20... Qd7 {[%clk
0:01:14.4]} 21. h6 {[%clk 0:01:32.4]} 21... g6 {[%clk 0:01:12.4]} 22. Rhg1
{[%clk 0:01:21.9]} 22... Nf5 {[%clk 0:01:00.9]} 23. Nh2 {[%clk 0:01:20.8]} 23...
Re2 {[%clk 0:00:44.5]} 24. Ng4 {[%clk 0:01:20.5]} 24... Be7 {[%clk 0:00:43.5]}
25. Qd3 {[%clk 0:01:19.4]} 25... Rxf2 {[%clk 0:00:40.6]} 26. Nxf2 {[%clk
0:01:18.8]} 26... Qa4 {[%clk 0:00:41.2]} 27. Kb1 {[%clk 0:01:16.8]} 27... Qxf4
{[%clk 0:00:39.2]} 28. Ne4 {[%clk 0:01:15.5]} 28... c5 {[%clk 0:00:21.6]} 29.
dxc6 {[%clk 0:01:12.9]} 29... bxc6 {[%clk 0:00:21.5]} 30. Qc4 {[%clk 0:01:13.1]}
30... Qe5 {[%clk 0:00:11.7]} 31. Rge1 {[%clk 0:01:11.1]} 31... Kh8 {[%clk
0:00:06.7]} 32. Qxf7 {[%clk 0:01:10.3]} 32... Rb8 {[%clk 0:00:06.2]} 33. b3
{[%clk 0:00:58.9]} 33... Qa5 {[%clk 0:00:04.2]} 34. Nxd6 {[%clk 0:00:45]} 34...
Nxd6 {[%clk 0:00:02.8]} 1-0

[Event "*** SCC Grand Prix: Titled Tuesday Blitz"]
[Site "Chess.com"]
[Date "2020.06.09"]
[Round "6"]
[White "WiktoriaPOL"]
[Black "Bubachess1608"]
[Result "1-0"]
[WhiteElo "2050"]
[BlackElo "2284"]
[TimeControl "180+1"]
[EndTime "10:06:37 PDT"]
[Termination "WiktoriaPOL won on time"]

1. c4 {[%clk 0:03:00.9]} 1... e5 {[%clk 0:00:41.8]} 2. Nc3 {[%clk 0:03:00.2]}
2... d6 {[%clk 0:00:40]} 3. g3 {[%clk 0:02:58.1]} 3... c6 {[%clk 0:00:39.3]} 4.
d4 {[%clk 0:02:56.4]} 4... f5 {[%clk 0:00:39.9]} 5. dxe5 {[%clk 0:02:55.3]} 5...
dxe5 {[%clk 0:00:39.7]} 6. Qxd8+ {[%clk 0:02:54.7]} 6... Kxd8 {[%clk 0:00:39.6]}
7. Bg5+ {[%clk 0:02:51.6]} 7... Be7 {[%clk 0:00:37.5]} 8. O-O-O+ {[%clk
0:02:50.2]} 8... Kc7 {[%clk 0:00:35.8]} 9. Bxe7 {[%clk 0:02:41.7]} 9... Nxe7
{[%clk 0:00:34.4]} 10. e4 {[%clk 0:02:34.1]} 10... Na6 {[%clk 0:00:32.5]} 11.
Bg2 {[%clk 0:02:08.2]} 11... Be6 {[%clk 0:00:29.9]} 12. b3 {[%clk 0:02:06.4]}
12... Rad8 {[%clk 0:00:27.5]} 13. Nf3 {[%clk 0:01:55]} 13... Ng6 {[%clk
0:00:24]} 14. h4 {[%clk 0:01:51.1]} 14... Nc5 {[%clk 0:00:17]} 15. Ng5 {[%clk
0:01:29.2]} 15... Bg8 {[%clk 0:00:13.4]} 16. Kc2 {[%clk 0:01:23.3]} 16... f4
{[%clk 0:00:10.3]} 17. h5 {[%clk 0:01:13.8]} 17... Ne7 {[%clk 0:00:09.6]} 18.
gxf4 {[%clk 0:01:05.1]} 18... h6 {[%clk 0:00:09.1]} 19. Nh3 {[%clk 0:01:02.6]}
19... exf4 {[%clk 0:00:08.5]} 20. Nxf4 {[%clk 0:01:01.9]} 20... Bf7 {[%clk
0:00:09]} 21. f3 {[%clk 0:00:56.3]} 21... Rhf8 {[%clk 0:00:08.3]} 22. Nce2
{[%clk 0:00:55.1]} 22... Bg8 {[%clk 0:00:07.3]} 23. Bh3 {[%clk 0:00:37.7]} 23...
a5 {[%clk 0:00:06.4]} 24. Bg4 {[%clk 0:00:35]} 24... Rd6 {[%clk 0:00:05]} 25.
Rxd6 {[%clk 0:00:33.6]} 25... Kxd6 {[%clk 0:00:04.7]} 26. Rd1+ {[%clk
0:00:30.6]} 26... Kc7 {[%clk 0:00:05.1]} 27. a3 {[%clk 0:00:27.6]} 27... Nc8
{[%clk 0:00:04.1]} 28. Ng6 {[%clk 0:00:25.5]} 28... Re8 {[%clk 0:00:02.9]} 29.
Kc3 {[%clk 0:00:20.8]} 29... Nd6 {[%clk 0:00:01.7]} 30. b4 {[%clk 0:00:19.5]}
1-0

[Event "*** SCC Grand Prix: Titled Tuesday Blitz"]
[Site "Chess.com"]
[Date "2020.06.09"]
[Round "6"]
[White "Vitor-Moraes"]
[Black "rududuyk"]
[Result "0-1"]
[WhiteElo "1960"]
[BlackElo "2188"]
[TimeControl "180+1"]
[EndTime "10:06:38 PDT"]
[Termination "rududuyk won by resignation"]

1. e4 {[%clk 0:02:33.9]} 1... e6 {[%clk 0:02:59.4]} 2. d4 {[%clk 0:02:27.7]}
2... d5 {[%clk 0:02:59.7]} 3. Nd2 {[%clk 0:02:27.8]} 3... Nf6 {[%clk 0:02:59.1]}
4. e5 {[%clk 0:02:28.2]} 4... Nfd7 {[%clk 0:02:58.8]} 5. Bd3 {[%clk 0:02:28.7]}
5... c5 {[%clk 0:02:58.8]} 6. c3 {[%clk 0:02:29.3]} 6... Nc6 {[%clk 0:02:59.3]}
7. Ne2 {[%clk 0:02:29.5]} 7... cxd4 {[%clk 0:02:59.5]} 8. cxd4 {[%clk
0:02:29.1]} 8... f6 {[%clk 0:02:59.7]} 9. exf6 {[%clk 0:02:22]} 9... Nxf6 {[%clk
0:03:00.6]} 10. Nf3 {[%clk 0:02:22.1]} 10... Bd6 {[%clk 0:03:00.3]} 11. O-O
{[%clk 0:02:21.8]} 11... Qc7 {[%clk 0:02:59.7]} 12. h3 {[%clk 0:02:19.9]} 12...
O-O {[%clk 0:02:58.8]} 13. Bb1 {[%clk 0:02:19]} 13... e5 {[%clk 0:02:31]} 14.
dxe5 {[%clk 0:02:06.4]} 14... Nxe5 {[%clk 0:02:30.2]} 15. Nxe5 {[%clk
0:01:48.9]} 15... Bxe5 {[%clk 0:02:31.1]} 16. Qd3 {[%clk 0:01:48.9]} 16... Ne4
{[%clk 0:02:05.4]} 17. Qxd5+ {[%clk 0:01:43.6]} 17... Kh8 {[%clk 0:02:01.1]} 18.
Bxe4 {[%clk 0:01:33.7]} 18... Rd8 {[%clk 0:01:51.3]} 19. Qb3 {[%clk 0:01:32.5]}
19... Rb8 {[%clk 0:01:49.1]} 20. Be3 {[%clk 0:01:30.2]} 20... b6 {[%clk
0:01:48.4]} 21. Rac1 {[%clk 0:01:28.9]} 21... Qe7 {[%clk 0:01:44.5]} 22. Qc2
{[%clk 0:01:22.5]} 22... Ba6 {[%clk 0:01:42.3]} 23. Rfd1 {[%clk 0:01:17.3]}
23... Rf8 {[%clk 0:01:31]} 24. Nc3 {[%clk 0:00:35.8]} 24... Qh4 {[%clk
0:01:25.1]} 25. Bd3 {[%clk 0:00:27.6]} 25... Bc8 {[%clk 0:01:23.4]} 26. Be4
{[%clk 0:00:28]} 26... Bxh3 {[%clk 0:01:12.9]} 27. gxh3 {[%clk 0:00:26.6]} 27...
Qxh3 {[%clk 0:01:12.8]} 28. Bg2 {[%clk 0:00:26]} 28... Bh2+ {[%clk 0:01:06.7]}
29. Kf1 {[%clk 0:00:26.3]} 29... Qxe3 {[%clk 0:01:06]} 30. Qe2 {[%clk
0:00:22.1]} 30... Qg5 {[%clk 0:00:55.5]} 31. Rd5 {[%clk 0:00:19.4]} 31... Qxc1+
{[%clk 0:00:54.6]} 32. Rd1 {[%clk 0:00:19]} 32... Qg5 {[%clk 0:00:48.1]} 33. Rd3
{[%clk 0:00:14.4]} 33... Rbe8 {[%clk 0:00:46.1]} 34. Qd2 {[%clk 0:00:05.7]}
34... Bf4 {[%clk 0:00:42.1]} 35. Qd1 {[%clk 0:00:05.2]} 35... Qc5 {[%clk
0:00:32.3]} 36. Ne4 {[%clk 0:00:03.6]} 36... Qb5 {[%clk 0:00:30.9]} 37. Nd6
{[%clk 0:00:01.3]} 0-1

[Event "*** SCC Grand Prix: Titled Tuesday Blitz"]
[Site "Chess.com"]
[Date "2020.06.09"]
[Round "6"]
[White "AniJak"]
[Black "novocane"]
[Result "0-1"]
[WhiteElo "2241"]
[BlackElo "2195"]
[TimeControl "180+1"]
[EndTime "10:06:39 PDT"]
[Termination "novocane won on time"]

1. e4 {[%clk 0:03:00.9]} 1... c5 {[%clk 0:02:59.2]} 2. Nc3 {[%clk 0:03:00.6]}
2... Nc6 {[%clk 0:02:58.1]} 3. g3 {[%clk 0:03:01]} 3... g6 {[%clk 0:02:55.4]} 4.
Bg2 {[%clk 0:03:01.5]} 4... Bg7 {[%clk 0:02:52.7]} 5. d3 {[%clk 0:03:02]} 5...
d6 {[%clk 0:02:52.6]} 6. Nh3 {[%clk 0:03:01.5]} 6... e5 {[%clk 0:02:52]} 7. O-O
{[%clk 0:03:00.9]} 7... Nge7 {[%clk 0:02:51.6]} 8. f4 {[%clk 0:03:00.9]} 8...
Nd4 {[%clk 0:02:41.2]} 9. Be3 {[%clk 0:02:48.2]} 9... f5 {[%clk 0:02:39.7]} 10.
Qd2 {[%clk 0:02:43.5]} 10... O-O {[%clk 0:02:37.2]} 11. Nd1 {[%clk 0:02:42.4]}
11... Rb8 {[%clk 0:02:33.4]} 12. c3 {[%clk 0:02:42.4]} 12... Ne6 {[%clk
0:02:28.8]} 13. fxe5 {[%clk 0:02:30.7]} 13... dxe5 {[%clk 0:02:28.4]} 14. exf5
{[%clk 0:02:17.1]} 14... gxf5 {[%clk 0:02:12.3]} 15. Bh6 {[%clk 0:02:15.7]}
15... b6 {[%clk 0:02:02.6]} 16. Bxg7 {[%clk 0:02:13.3]} 16... Kxg7 {[%clk
0:02:02.2]} 17. Qe2 {[%clk 0:02:05.6]} 17... Ng6 {[%clk 0:01:58.1]} 18. Ne3
{[%clk 0:02:00.6]} 18... f4 {[%clk 0:01:53.4]} 19. Ng4 {[%clk 0:01:53.4]} 19...
Qd6 {[%clk 0:01:24.8]} 20. Rae1 {[%clk 0:01:50.9]} 20... fxg3 {[%clk 0:01:09.9]}
21. hxg3 {[%clk 0:01:50.3]} 21... Rxf1+ {[%clk 0:01:08.2]} 22. Bxf1 {[%clk
0:01:50.3]} 22... Bb7 {[%clk 0:01:03.4]} 23. Nxe5 {[%clk 0:01:38.8]} 23... Re8
{[%clk 0:00:38.3]} 24. Kh2 {[%clk 0:01:18.1]} 24... Nef8 {[%clk 0:00:26.6]} 25.
d4 {[%clk 0:00:59.2]} 25... cxd4 {[%clk 0:00:26.4]} 26. cxd4 {[%clk 0:00:46.8]}
26... Qxd4 {[%clk 0:00:26.6]} 27. Rc1 {[%clk 0:00:09.9]} 27... Rxe5 {[%clk
0:00:24.5]} 28. Qg4 {[%clk 0:00:07.2]} 28... Qd5 {[%clk 0:00:21.9]} 29. Nf2
{[%clk 0:00:01.1]} 29... Rh5+ {[%clk 0:00:19.5]} 0-1

[Event "*** SCC Grand Prix: Titled Tuesday Blitz"]
[Site "Chess.com"]
[Date "2020.06.09"]
[Round "6"]
[White "ARTHURMOTIVATOR"]
[Black "Quiet_Desperation"]
[Result "1-0"]
[WhiteElo "2270"]
[BlackElo "1901"]
[TimeControl "180+1"]
[EndTime "10:06:41 PDT"]
[Termination "ARTHURMOTIVATOR won on time"]

1. e4 {[%clk 0:03:00.9]} 1... e6 {[%clk 0:02:59.5]} 2. b3 {[%clk 0:03:00.3]}
2... d5 {[%clk 0:02:43.1]} 3. Bb2 {[%clk 0:03:00.1]} 3... Nf6 {[%clk 0:02:42.8]}
4. e5 {[%clk 0:02:58.6]} 4... Nfd7 {[%clk 0:02:42.1]} 5. Qg4 {[%clk 0:02:59.1]}
5... c5 {[%clk 0:02:37.6]} 6. f4 {[%clk 0:02:57.7]} 6... Nc6 {[%clk 0:02:37.3]}
7. Nf3 {[%clk 0:02:57.2]} 7... g6 {[%clk 0:02:27.7]} 8. Be2 {[%clk 0:02:53.6]}
8... Bg7 {[%clk 0:02:16.2]} 9. O-O {[%clk 0:02:52.5]} 9... O-O {[%clk
0:02:05.1]} 10. c3 {[%clk 0:02:50.6]} 10... Qe7 {[%clk 0:01:45]} 11. Na3 {[%clk
0:02:46.6]} 11... a6 {[%clk 0:01:44.2]} 12. Nc2 {[%clk 0:02:45.4]} 12... f6
{[%clk 0:01:43.4]} 13. d4 {[%clk 0:02:43.3]} 13... f5 {[%clk 0:01:42.1]} 14. Qh3
{[%clk 0:02:40.6]} 14... h6 {[%clk 0:01:39.6]} 15. Kh1 {[%clk 0:02:37.9]} 15...
b5 {[%clk 0:01:38.4]} 16. a4 {[%clk 0:02:32.6]} 16... Rb8 {[%clk 0:01:36.6]} 17.
axb5 {[%clk 0:02:20.6]} 17... axb5 {[%clk 0:01:36.2]} 18. g4 {[%clk 0:02:07.4]}
18... g5 {[%clk 0:01:26.7]} 19. fxg5 {[%clk 0:01:55.9]} 19... hxg5 {[%clk
0:01:24.5]} 20. Bd3 {[%clk 0:01:52.1]} 20... c4 {[%clk 0:01:19.7]} 21. Ba3
{[%clk 0:01:10.9]} 21... b4 {[%clk 0:01:13.1]} 22. Nxb4 {[%clk 0:01:09.3]} 22...
Nxb4 {[%clk 0:01:12.6]} 23. Bxb4 {[%clk 0:01:07.5]} 23... Rxb4 {[%clk
0:01:12.6]} 24. gxf5 {[%clk 0:01:00.4]} 24... Rxb3 {[%clk 0:01:01.6]} 25. f6
{[%clk 0:00:57]} 25... Nxf6 {[%clk 0:01:01]} 26. exf6 {[%clk 0:00:55.7]} 26...
Rxf6 {[%clk 0:00:53.4]} 27. Bh7+ {[%clk 0:00:46.8]} 27... Kf8 {[%clk 0:00:50.4]}
28. Ra8 {[%clk 0:00:44.7]} 28... Qb7 {[%clk 0:00:44.7]} 29. Raa1 {[%clk
0:00:30.2]} 29... e5 {[%clk 0:00:40.3]} 30. Qg3 {[%clk 0:00:22.1]} 30... e4
{[%clk 0:00:19.7]} 31. Ne5 {[%clk 0:00:20.4]} 31... Ke7 {[%clk 0:00:11.9]} 32.
Qxg5 {[%clk 0:00:19.9]} 32... Be6 {[%clk 0:00:08.7]} 33. Qxg7+ {[%clk
0:00:19.3]} 1-0

[Event "*** SCC Grand Prix: Titled Tuesday Blitz"]
[Site "Chess.com"]
[Date "2020.06.09"]
[Round "6"]
[White "i_am_sankalp"]
[Black "Kolle05"]
[Result "0-1"]
[WhiteElo "2187"]
[BlackElo "2364"]
[TimeControl "180+1"]
[EndTime "10:06:42 PDT"]
[Termination "Kolle05 won by resignation"]

1. e4 {[%clk 0:03:00.9]} 1... c5 {[%clk 0:02:59.8]} 2. Nf3 {[%clk 0:03:00.4]}
2... d6 {[%clk 0:03:00.2]} 3. d4 {[%clk 0:03:00.5]} 3... cxd4 {[%clk 0:03:01.1]}
4. Nxd4 {[%clk 0:03:01.4]} 4... Nf6 {[%clk 0:03:01.7]} 5. Nc3 {[%clk 0:03:02]}
5... a6 {[%clk 0:03:02.3]} 6. Bg5 {[%clk 0:03:02.5]} 6... e6 {[%clk 0:03:02.7]}
7. f4 {[%clk 0:03:03.1]} 7... h6 {[%clk 0:03:03.3]} 8. Bh4 {[%clk 0:03:02.3]}
8... Qb6 {[%clk 0:03:03.8]} 9. a3 {[%clk 0:02:58.7]} 9... Be7 {[%clk 0:03:03.6]}
10. Bf2 {[%clk 0:02:58.5]} 10... Qc7 {[%clk 0:03:04.1]} 11. Bd3 {[%clk
0:02:53.7]} 11... Nbd7 {[%clk 0:03:02.9]} 12. Qf3 {[%clk 0:02:45]} 12... b5
{[%clk 0:03:02.3]} 13. O-O-O {[%clk 0:02:43.8]} 13... Bb7 {[%clk 0:03:02]} 14.
Rhe1 {[%clk 0:02:32.7]} 14... O-O-O {[%clk 0:02:58.9]} 15. Kb1 {[%clk
0:02:32.4]} 15... Kb8 {[%clk 0:02:58.3]} 16. Bxb5 {[%clk 0:02:07.7]} 16... axb5
{[%clk 0:02:55.1]} 17. Ndxb5 {[%clk 0:02:08.6]} 17... Qc6 {[%clk 0:02:46.8]} 18.
Rd4 {[%clk 0:01:44.9]} 18... Nc5 {[%clk 0:02:42.5]} 19. Rb4 {[%clk 0:01:30.2]}
19... d5 {[%clk 0:02:29.7]} 20. Bd4 {[%clk 0:00:40.6]} 20... Nfxe4 {[%clk
0:01:44.8]} 21. Nxe4 {[%clk 0:00:31.3]} 21... Nxe4 {[%clk 0:01:35.9]} 22. Be5+
{[%clk 0:00:31.1]} 22... Bd6 {[%clk 0:01:35.4]} 23. Nxd6 {[%clk 0:00:28]} 23...
Nxd6 {[%clk 0:01:11.4]} 24. Re3 {[%clk 0:00:25.2]} 24... f6 {[%clk 0:01:09.5]}
25. Rc3 {[%clk 0:00:19.2]} 25... Qa6 {[%clk 0:01:00.6]} 26. Bxd6+ {[%clk
0:00:11.5]} 26... Rxd6 {[%clk 0:01:01.5]} 27. Qg3 {[%clk 0:00:10.6]} 27... Rd7
{[%clk 0:00:57.3]} 28. f5+ {[%clk 0:00:09.7]} 28... e5 {[%clk 0:00:57.5]} 29.
Rcb3 {[%clk 0:00:10.2]} 29... Rc8 {[%clk 0:00:56.4]} 30. Rb6 {[%clk 0:00:09.5]}
30... Qf1+ {[%clk 0:00:56.1]} 31. Ka2 {[%clk 0:00:09.5]} 31... Rxc2 {[%clk
0:00:52.9]} 32. Qe3 {[%clk 0:00:05.5]} 32... Qc4 {[%clk 0:00:41.7]} 33. Rb4
{[%clk 0:00:01.9]} 33... Qc5 {[%clk 0:00:38.5]} 34. Qxc5 {[%clk 0:00:02]} 34...
Rxc5 {[%clk 0:00:39.4]} 35. a4 {[%clk 0:00:02.3]} 35... Ka7 {[%clk 0:00:38.7]}
36. Ka3 {[%clk 0:00:03.2]} 36... d4 {[%clk 0:00:38.6]} 37. a5 {[%clk 0:00:02.8]}
37... Bd5 {[%clk 0:00:38.4]} 38. Ra4 {[%clk 0:00:03.6]} 0-1